bitfinex/quotes_ETHUSD_20250913
["timestamp","ask_amount","ask_price","bid_price","bid_amount"]
[1757753211420,1.22321,4720.2,4720.1,5.77840677]
[1757753213371,1.22321,4720.2,4720.1,2.26140677]
[1757753213527,1.22321,4720.2,4720.1,5.77840677]
[1757753213722,0.91751,4720.2,4720.1,5.77840677]
[1757753214136,0.91751,4720.2,4720.1,6.06710677]
[1757753214336,0.794,4720.2,4720.1,6.06710677]
[1757753218870,0.794,4720.2,4720.1,5.77840677]
[1757753219972,1.0997,4720.2,4720.1,5.77840677]
[1757753220990,0.794,4720.2,4720.1,5.77840677]
[1757753221407,0.794,4720.2,4720.1,2.26140677]
[1757753221408,3.2531,4720.2,4720.1,2.26140677]
[1757753221693,3.6922,4720.2,4720.1,5.143]
[1757753222193,4.08144973,4720.2,4720.1,5.143]
[1757753223646,4.08144973,4720.2,4720.1,1.626]
[1757753223847,4.08144973,4720.2,4720.1,5.143]
[1757753224287,1.48894973,4720.2,4720.1,5.143]
[1757753225216,1.18324973,4720.2,4720.1,5.143]
[1757753225544,1.18324973,4720.2,4720.1,5.4317]
[1757753226087,0.794,4720.2,4720.1,5.4317]
[1757753226586,0.794,4720.2,4720.1,8.1599]
[1757753228995,0.794,4720.2,4720.1,8.79525429]
[1757753230103,0.794,4720.2,4720.1,6.06705429]
[1757753230933,0.794,4720.2,4720.1,6.53625429]
[1757753231235,0.794,4720.2,4720.1,6.06705429]
[1757753231569,0.794,4720.2,4720.1,6.53625429]
[1757753231893,0.794,4720.2,4720.1,3.01925429]
[1757753232124,0.794,4720.2,4720.1,6.53625429]
[1757753233701,0.794,4720.2,4720.1,6.06705429]
[1757753234785,0.794,4720.2,4720.1,2.26135429]
[1757753234986,0.794,4720.2,4720.1,5.77835429]
[1757753235198,1.08894,4720.2,4720.1,5.77835429]
[1757753235432,1.08894,4720.2,4720.1,6.07225429]
[1757753237226,3.70674,4720.2,4720.1,2.26135429]
[1757753237428,4.15364,4720.2,4720.1,5.142]
[1757753239785,3.70674,4720.2,4720.1,1.626]
[1757753240124,3.70674,4720.2,4720.1,5.142]
[1757753241127,1.39394,4720.2,4720.1,5.142]
[1757753242114,3.70674,4720.2,4720.1,5.142]
[1757753244509,3.70674,4720.2,4720.1,5.77741081]
[1757753244913,1.39394,4720.2,4720.1,5.77741081]
[1757753249056,3.70674,4720.2,4720.1,5.77741081]
[1757753250534,1.39394,4720.2,4720.1,5.77741081]
[1757753251843,1.39394,4720.2,4720.1,2.26141081]
[1757753252136,1.39394,4720.2,4720.1,5.77741081]
[1757753254334,1.39394,4720.2,4720.1,2.26141081]
[1757753254539,1.39394,4720.2,4720.1,5.77741081]
[1757753254736,1.39394,4720.2,4720.1,2.26141081]
[1757753254941,1.39394,4720.2,4720.1,5.77741081]
[1757753255317,1.39394,4720.2,4720.1,5.142]
[1757753255519,1.39394,4720.2,4720.1,5.77741215]
[1757753255921,1.08894,4720.2,4720.1,5.77741215]
[1757753256922,1.08894,4720.2,4720.1,6.07131215]
[1757753259116,0.794,4720.2,4720.1,6.07131215]
[1757753261936,0.794,4720.2,4720.1,5.77741215]
[1757753265471,0.794,4720.2,4720.1,2.26141215]
[1757753265670,0.794,4720.2,4720.1,5.77741215]
[1757753266367,0.794,4720.2,4720.1,2.26141215]
[1757753266572,0.794,4720.2,4720.1,5.77741215]
[1757753268440,0.794,4720.2,4720.1,6.07691215]
[1757753268774,0.794,4720.2,4720.1,8.64941215]
[1757753269273,0.794,4720.2,4720.1,6.07691215]
[1757753270164,0.794,4720.2,4720.1,6.07591215]
[1757753273605,1.1069,4720.2,4720.1,5.77641215]
[1757753273900,1.44234482,4720.2,4720.1,5.77641215]
[1757753275289,1.44234482,4720.2,4720.1,2.26141215]
[1757753275696,1.44234482,4720.2,4720.1,5.77641215]
[1757753276909,1.12944482,4720.2,4720.1,5.77641215]
[1757753281790,1.12944482,4720.2,4720.1,6.07591215]
[1757753282195,1.12944482,4720.2,4720.1,8.64841215]
[1757753282395,0.794,4720.2,4720.1,8.64841215]
[1757753286013,0.794,4720.2,4720.1,6.07591215]
[1757753289020,0.794,4720.2,4720.1,5.77641215]
[1757753290753,1.1069,4720.2,4720.1,5.77641215]
[1757753291054,3.5943,4720.2,4720.1,5.77641215]
[1757753291253,3.97376253,4720.2,4720.1,5.77641215]
[1757753291639,1.48636253,4720.2,4720.1,2.26141215]
[1757753291824,1.1069,4720.2,4720.1,5.77641215]
[1757753292814,3.5943,4720.2,4720.1,5.77541215]
[1757753293230,1.1069,4720.2,4720.1,5.77541215]
[1757753294768,1.1069,4720.2,4720.1,2.26141215]
[1757753294973,3.1541,4720.2,4720.1,1.626]
[1757753295128,4.36683171,4720.2,4720.1,1.626]
[1757753295329,4.76330167,4720.2,4720.1,4.423]
[1757753295529,4.88229309,4720.2,4720.1,4.423]
[1757753296146,4.56506669,4720.2,4720.1,4.423]
[1757753296359,4.76330167,4720.2,4720.1,4.423]
[1757753297378,4.56506669,4720.2,4720.1,4.423]
[1757753297532,4.76330167,4720.2,4720.1,3.515]
[1757753297731,4.88229309,4720.2,4720.1,3.515]
[1757753298685,4.88229309,4720.2,4720.1,0.001]
[1757753298834,4.88229309,4720.2,4720.1,3.515]
[1757753299267,4.76330167,4720.2,4720.1,3.515]
[1757753299556,4.76330167,4720.2,4720.1,0.001]
[1757753300271,4.56506669,4720.2,4720.1,0.001]
[1757753301388,5.20061614,4720.2,4720.1,0.001]
[1757753302225,4.74369443,4720.2,4720.1,0.001]
[1757753304501,4.54545945,4720.2,4720.1,0.001]
[1757753304734,4.74369443,4720.2,4720.1,0.001]
[1757753304936,4.54545945,4720.2,4720.1,0.001]
[1757753305132,4.74369443,4720.2,4720.1,0.001]
[1757753305336,4.54545945,4720.2,4720.1,0.001]
[1757753305538,4.74369443,4720.2,4720.1,0.001]
[1757753305736,4.54545945,4720.2,4720.1,0.001]
[1757753305901,4.74369443,4720.2,4720.1,0.001]
[1757753306239,4.54545945,4720.2,4720.1,0.001]
[1757753308516,6.77245945,4720.2,4720.1,0.001]
[1757753308723,5.06092083,4720.2,4720.1,0.001]
[1757753309055,4.54545945,4720.2,4720.1,0.001]
[1757753309354,4.74369443,4720.2,4720.1,0.001]
[1757753310311,4.54545945,4720.2,4720.1,0.001]
[1757753310516,4.74312844,4720.2,4720.1,0.001]
[1757753310750,4.54545945,4720.2,4720.1,0.001]
[1757753310951,4.74312844,4720.2,4720.1,0.001]
[1757753311138,4.54545945,4720.2,4720.1,0.001]
[1757753311344,4.74312844,4720.2,4720.1,0.001]
[1757753311527,4.54545945,4720.2,4720.1,0.001]
[1757753311734,4.74312844,4720.2,4720.1,0.001]
[1757753311940,4.54545945,4720.2,4720.1,0.001]
[1757753312125,4.74312844,4720.2,4720.1,0.001]
[1757753312325,4.54545945,4720.2,4720.1,0.001]
[1757753312525,4.74312844,4720.2,4720.1,0.001]
[1757753312760,4.54545945,4720.2,4720.1,0.001]
[1757753312960,4.74312844,4720.2,4720.1,0.001]
[1757753313125,4.54545945,4720.2,4720.1,0.001]
[1757753313321,4.74312844,4720.2,4720.1,0.001]
[1757753313527,4.54545945,4720.2,4720.1,0.001]
[1757753313728,4.74312844,4720.2,4720.1,0.001]
[1757753313929,4.54545945,4720.2,4720.1,0.001]
[1757753314150,4.74312844,4720.2,4720.1,0.001]
[1757753314352,4.54545945,4720.2,4720.1,0.001]
[1757753314554,4.74312844,4720.2,4720.1,0.001]
[1757753315066,4.54545945,4720.2,4720.1,0.001]
[1757753315243,4.74312844,4720.2,4720.1,0.001]
[1757753318329,5.20005015,4720.2,4720.1,0.001]
[1757753320153,5.39771914,4720.2,4720.1,0.001]
[1757753321247,5.51632053,4720.2,4720.1,0.001]
[1757753321446,5.39771914,4720.2,4720.1,0.001]
[1757753321649,5.07612053,4720.2,4720.1,0.001]
[1757753321873,4.95751914,4720.2,4720.1,0.001]
[1757753322071,5.07612053,4720.2,4720.1,0.001]
[1757753322260,3.02892053,4720.2,4720.1,0.001]
[1757753323244,3.59996601,4720.2,4720.1,0.001]
[1757753324362,3.02892053,4720.2,4720.1,0.001]
[1757753330253,5.51252053,4720.2,4720.1,0.001]
[1757753330488,10.63107482,4720.2,4720.1,0.001]
[1757753330688,2.91064406,4720.0,4719.9,0.001]
[1757753330896,6.88150514,4720.0,4719.9,0.001]
[1757753331190,9.20290514,4720.0,4719.9,0.001]
[1757753331354,9.75936303,4720.0,4719.9,0.001]
[1757753332976,7.64071897,4720.0,4719.9,0.001]
[1757753333183,11.62944438,4720.0,4719.9,0.001]
[1757753333788,9.51080032,4720.0,4719.9,0.001]
[1757753334300,10.2719435,4720.0,4719.9,0.001]
[1757753336387,9.8002435,4720.0,4719.9,0.001]
[1757753337100,9.80125174,4720.0,4719.9,0.001]
[1757753337865,10.27295174,4720.0,4719.9,0.001]
[1757753338066,11.63045262,4720.0,4719.9,0.001]
[1757753340807,11.63067146,4720.0,4719.9,0.001]
[1757753341381,12.39138996,4720.0,4719.9,0.001]
[1757753342981,12.39137492,4720.0,4719.9,0.001]
[1757753344116,5.91073384,4719.8,4719.7,0.001]
[1757753344281,15.97324039,4719.8,4719.7,0.001]
[1757753344485,18.76634039,4719.8,4719.7,0.001]
[1757753344816,18.85111246,4719.8,4719.7,0.001]
[1757753346088,19.99172778,4719.8,4719.7,0.001]
[1757753347984,12.69509154,4719.8,4719.7,0.001]
[1757753348187,16.20909154,4719.8,4719.7,0.001]
[1757753348418,16.68079154,4719.8,4719.7,0.001]
[1757753348740,11.84947622,4719.8,4719.7,0.001]
[1757753349084,12.15897622,4719.8,4719.7,0.001]
[1757753349284,12.15887579,4719.8,4719.7,0.001]
[1757753349479,12.95087579,4719.8,4719.7,0.001]
[1757753351611,15.43447579,4719.8,4719.7,0.001]
[1757753352522,18.14784196,4719.8,4719.7,0.001]
[1757753353023,6.01637873,4719.7,4719.6,0.001]
[1757753353323,11.63184861,4719.7,4719.6,0.001]
[1757753353526,11.94134861,4719.7,4719.6,0.001]
[1757753355625,11.46964861,4719.7,4719.6,0.001]
[1757753356324,9.45774861,4719.7,4719.6,0.001]
[1757753356521,9.54251494,4719.7,4719.6,0.001]
[1757753357019,7.42373621,4719.7,4719.6,0.001]
[1757753357221,9.54251494,4719.7,4719.6,0.001]
[1757753357629,9.23301494,4719.7,4719.6,0.001]
[1757753359328,12.74701494,4719.7,4719.6,0.001]
[1757753359532,9.23301494,4719.7,4719.6,0.001]
[1757753359834,12.74701494,4719.7,4719.6,0.001]
[1757753360636,13.06021494,4719.7,4719.6,0.001]
[1757753360930,0.792,4719.3,4719.2,0.001]
[1757753361106,12.06071167,4719.3,4719.2,0.001]
[1757753361307,12.37391167,4719.3,4719.2,0.001]
[1757753361632,10.33971985,4719.3,4719.2,0.001]
[1757753362133,12.45867817,4719.3,4719.2,0.001]
[1757753362434,10.33971985,4719.3,4719.2,0.001]
[1757753362733,10.02651985,4719.3,4719.2,0.001]
[1757753363824,9.82834674,4719.3,4719.2,0.001]
[1757753364025,12.14543853,4719.3,4719.2,0.001]
[1757753364229,10.02648021,4719.3,4719.2,0.001]
[1757753364997,6.51248021,4719.3,4719.2,0.001]
[1757753365195,10.02548021,4719.3,4719.2,0.3168]
[1757753365413,9.94071371,4719.3,4719.2,0.3168]
[1757753366031,9.94071371,4719.3,4719.2,0.001]
[1757753366443,10.70145383,4719.3,4719.2,0.001]
[1757753368232,11.12117016,4719.3,4719.2,0.001]
[1757753369338,13.24012848,4719.3,4719.2,0.001]
[1757753369533,11.12117016,4719.3,4719.2,0.001]
[1757753369897,13.24025761,4719.3,4719.2,0.001]
[1757753371842,12.79271749,4719.3,4719.2,0.001]
[1757753372919,12.79279399,4719.3,4719.2,0.001]
[1757753373621,12.87756211,4719.3,4719.2,0.001]
[1757753374657,12.56436211,4719.3,4719.2,0.001]
[1757753374828,6.93240379,4719.3,4719.2,2.5062]
[1757753375162,8.78162313,4719.3,4719.2,2.9699]
[1757753375371,10.90058145,4719.3,4719.2,2.9699]
[1757753375659,8.78162313,4719.3,4719.2,2.9699]
[1757753375858,10.90058145,4719.3,4719.2,2.9699]
[1757753377624,10.90058145,4719.3,4719.2,0.7805]
[1757753377824,12.32735035,4719.3,4719.2,0.7805]
[1757753379154,12.32735035,4719.3,4719.2,0.3168]
[1757753381261,12.64055035,4719.3,4719.2,0.001]
[1757753381566,12.32735035,4719.3,4719.2,0.001]
[1757753382296,12.32735035,4719.3,4719.2,0.3168]
[1757753382954,12.32935035,4719.3,4719.2,0.3168]
[1757753384006,10.21039203,4719.3,4719.2,0.3168]
[1757753384211,12.32935035,4719.3,4719.2,0.3168]
[1757753384492,12.32935035,4719.3,4719.2,0.001]
[1757753385257,12.24458223,4719.3,4719.2,0.001]
[1757753387417,12.24458223,4719.3,4719.2,0.2933]
[1757753390410,14.49158223,4719.3,4719.2,0.001]
[1757753390615,16.07739755,4719.3,4719.2,0.001]
[1757753390851,14.93678223,4719.3,4719.2,0.001]
[1757753391212,2.91100322,4719.2,4719.1,0.001]
[1757753391515,6.04303909,4719.2,4719.1,0.001]
[1757753391716,6.35083909,4719.2,4719.1,0.001]
[1757753392122,9.86383909,4719.2,4719.1,0.001]
[1757753392620,9.8641629,4719.2,4719.1,0.001]
[1757753392825,9.5563629,4719.2,4719.1,0.001]
[1757753393222,7.43735968,4719.2,4719.1,0.3106]
[1757753393528,7.43735968,4719.2,4719.1,2.7215]
[1757753393822,0.97246249,4719.2,4719.1,2.7215]
[1757753394402,1.76446249,4719.2,4719.1,2.7215]
[1757753398011,1.76449996,4719.2,4719.1,2.7215]
[1757753402134,2.33574825,4719.2,4719.1,2.7215]
[1757753402556,1.76449996,4719.2,4719.1,2.7215]
[1757753407507,0.97249996,4719.2,4719.1,2.7215]
[1757753407655,0.65536636,4719.2,4719.1,2.7215]
[1757753408491,0.792,4719.2,4719.1,2.7215]
[1757753416415,0.792,4719.2,4719.1,3.35703331]
[1757753416568,0.002,4719.3,4719.2,3.0]
[1757753416764,0.002,4719.3,4719.2,9.0371]
[1757753416983,0.002,4719.3,4719.2,9.342]
[1757753419882,0.002,4719.3,4719.2,0.3049]
[1757753420081,0.002,4719.3,4719.2,3.8159]
[1757753421187,0.002,4719.3,4719.2,0.3049]
[1757753421519,0.8976,4719.2,4719.1,0.63653331]
[1757753421726,0.8976,4719.2,4719.1,3.512]
[1757753422287,0.8976,4719.2,4719.1,0.001]
[1757753422480,1.2026,4719.2,4719.1,3.512]
[1757753427976,0.8976,4719.2,4719.1,3.8269]
[1757753429280,0.8976,4719.2,4719.1,3.512]
[1757753430411,0.8976,4719.2,4719.1,3.8269]
[1757753432361,0.8976,4719.2,4719.1,6.2684]
[1757753434216,0.8976,4719.2,4719.1,4.2885]
[1757753438235,0.8976,4719.2,4719.1,4.2875]
[1757753439166,0.8976,4719.2,4719.1,3.8259]
[1757753446002,0.8976,4719.2,4719.1,3.511]
[1757753446200,1.03131,4719.2,4719.1,3.511]
[1757753446408,1.31861,4719.2,4719.1,3.511]
[1757753448494,1.03131,4719.2,4719.1,3.511]
[1757753448709,0.8976,4719.2,4719.1,3.7992]
[1757753449691,0.8996,4719.2,4719.1,3.7992]
[1757753452987,0.8996,4719.2,4719.1,5.4242]
[1757753453388,0.8996,4719.2,4719.1,5.136]
[1757753454918,1.39338598,4719.2,4719.1,5.136]
[1757753455217,4.98427003,4719.2,4719.1,0.001]
[1757753455517,4.98427003,4719.2,4719.1,3.511]
[1757753455715,4.98414907,4719.2,4719.1,3.511]
[1757753459437,4.98414907,4719.2,4719.1,0.001]
[1757753459610,4.98384248,4719.2,4719.1,3.511]
[1757753460541,4.98384248,4719.2,4719.1,0.001]
[1757753460743,4.98384248,4719.2,4719.1,3.511]
[1757753460941,4.98384248,4719.2,4719.1,0.001]
[1757753461111,4.98384248,4719.2,4719.1,2.143]
[1757753461306,4.98384248,4719.2,4719.1,0.001]
[1757753461510,4.98384248,4719.2,4719.1,3.511]
[1757753461903,4.86496623,4719.2,4719.1,3.511]
[1757753462306,4.86496623,4719.2,4719.1,0.001]
[1757753462529,4.86496623,4719.2,4719.1,3.511]
[1757753462708,4.98384248,4719.2,4719.1,3.511]
[1757753462908,4.86496623,4719.2,4719.1,0.001]
[1757753463147,4.86496623,4719.2,4719.1,3.511]
[1757753463744,4.98384248,4719.2,4719.1,3.511]
[1757753464137,4.86496623,4719.2,4719.1,3.511]
[1757753464337,4.86496623,4719.2,4719.1,0.001]
[1757753464858,4.86496623,4719.2,4719.1,3.388]
[1757753465417,4.98384248,4719.2,4719.1,3.511]
[1757753465643,4.86496623,4719.2,4719.1,3.511]
[1757753466112,4.40799786,4719.2,4719.1,3.511]
[1757753466612,4.52687411,4719.2,4719.1,3.511]
[1757753467551,4.98384248,4719.2,4719.1,3.511]
[1757753468450,4.50934248,4719.2,4719.1,3.511]
[1757753468652,4.98384248,4719.2,4719.1,3.511]
[1757753469113,4.86496623,4719.2,4719.1,3.511]
[1757753469310,4.86485703,4719.2,4719.1,3.511]
[1757753469810,4.98373328,4719.2,4719.1,3.511]
[1757753472828,4.39035703,4719.2,4719.1,3.511]
[1757753473026,2.45985703,4719.2,4719.1,3.511]
[1757753474254,2.57873328,4719.2,4719.1,3.511]
[1757753477248,2.3807154,4719.2,4719.1,3.511]
[1757753477470,2.57878022,4719.2,4719.1,3.511]
[1757753478272,2.57872372,4719.2,4719.1,3.511]
[1757753478976,4.69772694,4719.2,4719.1,3.511]
[1757753479177,7.04322694,4719.2,4719.1,3.511]
[1757753479384,4.92422372,4719.2,4719.1,3.511]
[1757753480280,7.04322694,4719.2,4719.1,3.511]
[1757753482269,0.792,4719.1,4718.8,0.08]
[1757753482499,0.792,4718.9,4718.8,0.08]
[1757753482794,1.76398002,4718.9,4718.8,3.59]
[1757753482970,1.76398002,4718.9,4718.8,3.9029]
[1757753483656,1.76398002,4718.9,4718.8,4.3393]
[1757753483904,1.76398002,4718.9,4718.8,6.278]
[1757753484800,2.03907344,4718.9,4718.8,6.278]
[1757753487379,2.03907344,4718.9,4718.8,4.3393]
[1757753488112,2.03907344,4718.9,4718.8,3.9029]
[1757753488902,2.03940521,4718.9,4718.8,3.9029]
[1757753494299,2.03940521,4718.9,4718.8,0.3929]
[1757753494503,2.03940521,4718.9,4718.8,3.9019]
[1757753495415,2.03975571,4718.9,4718.8,0.08]
[1757753495609,2.03975571,4718.9,4718.8,3.589]
[1757753495809,2.35365571,4718.9,4718.8,3.589]
[1757753496209,2.35383443,4718.9,4718.8,3.589]
[1757753496415,2.35384119,4718.9,4718.8,3.589]
[1757753497732,0.8976,4718.8,4718.7,1.626]
[1757753497911,5.35558777,4718.8,4718.7,5.135]
[1757753498115,5.09827731,4718.8,4718.7,5.135]
[1757753500141,5.66943579,4718.8,4718.7,5.135]
[1757753500515,0.792,4718.7,4718.3,0.001]
[1757753500714,0.792,4718.5,4718.4,3.509]
[1757753500914,2.07874777,4718.5,4718.4,3.509]
[1757753502549,1.6217794,4718.5,4718.4,3.509]
[1757753505017,2.07848052,4718.5,4718.4,3.509]
[1757753507054,2.07848052,4718.5,4718.3,0.001]
[1757753507249,2.45231381,4718.4,4718.3,0.001]
[1757753507496,2.45231381,4718.4,4718.3,3.51]
[1757753507655,1.75112555,4718.4,4718.3,5.7785]
[1757753507822,1.75112555,4718.4,4718.3,6.0898]
[1757753508352,1.75088237,4718.4,4718.3,6.0898]
[1757753508554,1.29418125,4718.4,4718.3,6.0898]
[1757753508915,1.75088237,4718.4,4718.3,6.0898]
[1757753509117,1.29418125,4718.4,4718.3,6.0898]
[1757753509532,1.75088237,4718.4,4718.3,6.0898]
[1757753509759,1.29418125,4718.4,4718.3,6.0898]
[1757753509963,1.54475148,4718.4,4718.3,4.2621]
[1757753510124,2.0014526,4718.4,4718.3,3.8213]
[1757753510317,1.54475148,4718.4,4718.3,3.8213]
[1757753510663,1.54475148,4718.4,4718.3,4.2552]
[1757753510848,2.0014526,4718.4,4718.3,4.2552]
[1757753511024,1.54475148,4718.4,4718.3,4.2552]
[1757753511531,2.00121239,4718.4,4718.3,4.2552]
[1757753511714,1.54451127,4718.4,4718.3,4.2552]
[1757753512112,2.00121239,4718.4,4718.3,4.2552]
[1757753512423,1.97679026,4718.4,4718.3,4.2552]
[1757753512824,2.43349138,4718.4,4718.3,4.2552]
[1757753513145,1.97679026,4718.4,4718.3,6.1347]
[1757753513765,2.43349138,4718.4,4718.3,6.1347]
[1757753513955,1.97679026,4718.4,4718.3,6.1347]
[1757753514116,1.72622003,4718.4,4718.3,6.1347]
[1757753514517,2.18292115,4718.4,4718.3,6.1347]
[1757753514754,1.72622003,4718.4,4718.3,6.1347]
[1757753515360,2.18292115,4718.4,4718.3,6.1347]
[1757753515563,1.72622003,4718.4,4718.3,6.1347]
[1757753516133,2.18292115,4718.4,4718.3,6.1347]
[1757753516365,1.72622003,4718.4,4718.3,6.1347]
[1757753516537,1.29394104,4718.4,4718.3,6.1347]
[1757753517062,1.75064216,4718.4,4718.3,6.1347]
[1757753517264,1.29394104,4718.4,4718.3,6.1347]
[1757753517626,1.75064216,4718.4,4718.3,6.1347]
[1757753518463,1.75064216,4718.4,4718.3,4.2552]
[1757753519264,1.86954447,4718.4,4718.3,4.2552]
[1757753519465,1.75064216,4718.4,4718.3,4.2552]
[1757753519663,1.86954447,4718.4,4718.3,4.2552]
[1757753519831,1.75064216,4718.4,4718.3,4.2552]
[1757753520033,1.86954447,4718.4,4718.3,4.2552]
[1757753520232,1.75064216,4718.4,4718.3,4.2552]
[1757753520442,1.86954447,4718.4,4718.3,4.2552]
[1757753520633,1.75064216,4718.4,4718.3,4.2552]
[1757753520834,1.41284335,4718.4,4718.3,4.2552]
[1757753521030,1.29394104,4718.4,4718.3,4.2552]
[1757753521235,1.41284335,4718.4,4718.3,4.2552]
[1757753521491,1.29394104,4718.4,4718.3,4.2552]
[1757753521655,1.4130436,4718.4,4718.3,4.2552]
[1757753521854,1.75084627,4718.4,4718.3,4.2552]
[1757753522162,1.86979479,4718.4,4718.3,4.2552]
[1757753522363,1.75084627,4718.4,4718.3,4.2552]
[1757753522564,1.86979479,4718.4,4718.3,4.2552]
[1757753522767,2.17157356,4718.4,4718.3,4.2552]
[1757753522977,2.29052208,4718.4,4718.3,4.2552]
[1757753523143,2.17157356,4718.4,4718.3,4.2552]
[1757753523343,2.29052208,4718.4,4718.3,4.2552]
[1757753523542,2.17157356,4718.4,4718.3,4.2552]
[1757753523744,2.29052208,4718.4,4718.3,4.2552]
[1757753523957,2.17157356,4718.4,4718.3,4.2552]
[1757753524163,2.29052208,4718.4,4718.3,4.2552]
[1757753524376,2.29052208,4718.4,4718.3,3.8213]
[1757753526291,1.86979479,4718.4,4718.3,3.8213]
[1757753528864,1.86979479,4718.4,4718.3,4.2552]
[1757753529269,1.87036081,4718.4,4718.3,4.2552]
[1757753530852,1.87036081,4718.4,4718.3,5.7008]
[1757753530853,0.97276081,4718.4,4718.3,5.7008]
[1757753531052,0.12105953,4718.6,4718.3,9.39806024]
[1757753531257,0.002,4718.6,4718.4,5.33459362]
[1757753531479,0.002,4718.6,4718.5,3.509]
[1757753531677,0.002,4718.6,4718.5,3.7989]
[1757753531980,0.002,4718.6,4718.5,6.13349317]
[1757753532182,0.002,4718.6,4718.5,6.1123]
[1757753532583,0.002,4718.6,4718.5,6.19704747]
[1757753533286,0.002,4718.6,4718.5,9.46040771]
[1757753533459,0.002,4718.6,4718.5,39.46040771]
[1757753533987,0.002,4718.6,4718.5,44.81797894]
[1757753536877,0.002,4718.6,4718.5,44.81697894]
[1757753541961,0.002,4718.6,4718.5,41.30897894]
[1757753542194,0.002,4718.6,4718.5,44.53940771]
[1757753542498,0.002,4718.6,4718.5,44.27604747]
[1757753543202,0.002,4718.6,4718.5,40.76904747]
[1757753543379,0.002,4718.6,4718.5,44.27604747]
[1757753543573,0.002,4718.6,4718.5,40.33514747]
[1757753543779,0.002,4718.6,4718.5,38.96264747]
[1757753544182,0.002,4718.6,4718.5,41.96264747]
[1757753544403,0.002,4718.6,4718.5,35.45564747]
[1757753544568,0.002,4718.6,4718.5,38.96264747]
[1757753544769,0.002,4718.6,4718.5,41.96264747]
[1757753545070,0.002,4718.6,4718.5,8.3709]
[1757753545276,0.002,4718.6,4718.5,11.8779]
[1757753545477,0.002,4718.6,4718.5,41.8779]
[1757753545674,0.002,4718.6,4718.5,42.3494]
[1757753545882,0.002,4718.6,4718.5,44.2444]
[1757753546186,0.002,4718.6,4718.5,14.2444]
[1757753546572,0.002,4718.6,4718.5,40.7374]
[1757753546885,0.002,4718.6,4718.5,44.2444]
[1757753547086,0.002,4718.6,4718.5,44.50776024]
[1757753547792,0.002,4718.6,4718.5,44.78433147]
[1757753548828,0.002,4718.6,4718.5,44.50776024]
[1757753551707,0.002,4718.6,4718.5,44.50876024]
[1757753551920,0.002,4718.6,4718.5,41.00176024]
[1757753552098,0.002,4718.6,4718.5,44.2464]
[1757753552304,0.002,4718.6,4718.5,14.2464]
[1757753552629,0.002,4718.6,4718.5,44.2464]
[1757753554132,0.002,4718.6,4718.5,44.33112252]
[1757753554507,0.002,4718.6,4718.5,44.59448276]
[1757753555534,0.002,4718.6,4718.5,44.87105399]
[1757753557096,0.002,4718.6,4718.5,44.33112252]
[1757753562548,0.002,4718.6,4718.5,14.33112252]
[1757753562957,0.002,4718.6,4718.5,44.33112252]
[1757753563665,0.002,4718.6,4718.5,14.33112252]
[1757753564148,0.002,4718.6,4718.5,44.33112252]
[1757753566642,0.002,4718.6,4718.5,44.33012252]
[1757753571978,0.002,4718.6,4718.5,44.59348276]
[1757753573467,0.1076,4718.6,4718.5,44.59348276]
[1757753576173,0.1076,4718.6,4718.5,14.59348276]
[1757753576538,0.1076,4718.6,4718.5,44.33012252]
[1757753576868,0.1076,4718.6,4718.5,42.43512252]
[1757753577063,0.1076,4718.6,4718.5,41.96362252]
[1757753577438,0.4232,4718.6,4718.5,41.67372252]
[1757753577638,2.7147,4718.6,4718.5,41.67372252]
[1757753578075,2.7147,4718.6,4718.5,11.67372252]
[1757753578478,2.7147,4718.6,4718.5,41.67372252]
[1757753581870,2.7147,4718.6,4718.5,38.16672252]
[1757753582079,2.7147,4718.6,4718.5,41.67372252]
[1757753582702,2.7147,4718.6,4718.5,38.16672252]
[1757753582906,2.7147,4718.6,4718.5,41.67372252]
[1757753584202,2.7147,4718.6,4718.5,11.67372252]
[1757753584609,2.2454,4718.6,4718.5,41.67372252]
[1757753586770,0.4232,4718.6,4718.5,41.67372252]
[1757753590012,0.1076,4718.6,4718.5,41.93708276]
[1757753590421,0.1076,4718.6,4718.5,11.93708276]
[1757753590782,0.1076,4718.6,4718.5,41.93708276]
[1757753591515,0.1076,4718.6,4718.5,38.43008276]
[1757753591712,0.1076,4718.6,4718.5,41.93708276]
[1757753593421,0.1076,4718.6,4718.5,42.23738276]
[1757753593626,0.1076,4718.6,4718.5,38.43008276]
[1757753593823,0.1076,4718.6,4718.5,41.93708276]
[1757753594189,0.1076,4718.6,4718.5,42.23738276]
[1757753595503,0.1076,4718.6,4718.5,12.23738276]
[1757753595706,0.1076,4718.6,4718.5,13.56208276]
[1757753595928,0.1076,4718.6,4718.5,43.56208276]
[1757753596595,0.1076,4718.6,4718.5,43.29872252]
[1757753596596,0.3987,4718.6,4718.5,43.29872252]
[1757753596795,2.6739,4718.6,4718.5,39.79172252]
[1757753597127,3.4659,4718.6,4718.5,43.214]
[1757753602802,3.4659,4718.6,4718.5,9.707]
[1757753603007,3.81249,4718.6,4718.5,10.214]
[1757753603342,3.81249,4718.6,4718.5,13.214]
[1757753603503,3.81249,4718.6,4718.5,10.214]
[1757753606040,3.81249,4718.6,4718.5,13.84953599]
[1757753606603,3.81249,4718.6,4718.5,10.34253599]
[1757753606805,3.34919,4718.6,4718.5,13.84953599]
[1757753607143,1.24619,4718.6,4718.5,14.11289623]
[1757753607603,1.53729,4718.6,4718.5,14.11289623]
[1757753608237,3.81249,4718.6,4718.5,14.11289623]
[1757753608552,3.81249,4718.6,4718.5,13.84953599]
[1757753610903,3.81249,4718.6,4718.5,10.34253599]